fUSD/lending_fUSD_20260108
["ID","MTS","AMOUNT","RATE_DAILY","PERIOD"]
[400836601,1767841838897,-200.0,0.00013504,2]
[400836603,1767841838906,-1480.81,0.00013511,2]
[400836606,1767841838916,-166.66,0.00013517,2]
[400836607,1767841838925,-293.18,0.00013577,2]
[400836609,1767841838934,-200.0,0.00013639,2]
[400836611,1767841838944,-200.0,0.00013639,2]
[400836613,1767841838953,-200.0,0.00013639,2]
[400836615,1767841838963,-1000.0,0.00013646,2]
[400836618,1767841838973,-19191.74142588,0.00013666,2]
[400836620,1767841838983,-14710.94199581,0.00013667,2]
[400836622,1767841838993,-169.2059876,0.00013676,2]
[400836624,1767841839003,-500.0,0.00013698,2]
[400836626,1767841839012,-500.0,0.00013698,2]
[400836628,1767841839022,-500.0,0.00013698,2]
[400836630,1767841839031,-500.0,0.00013698,2]
[400836632,1767841839040,-500.0,0.00013698,2]
[400836634,1767841839049,-500.0,0.00013698,2]
[400836636,1767841839059,-500.0,0.00013698,2]
[400836637,1767841839068,-177.13628459,0.00013698,2]
[400836640,1767841839078,-500.0,0.00013698,2]
[400836642,1767841839088,-500.0,0.00013698,2]
[400836644,1767841839099,-500.0,0.00013698,2]
[400836646,1767841839107,-512.38385976,0.00013698,2]
[400836648,1767841839117,-500.0,0.00013698,2]
[400836650,1767841839126,-500.0,0.00013698,2]
[400836652,1767841839135,-500.0,0.00013698,2]
[400836654,1767841839144,-500.0,0.00013698,2]
[400836656,1767841839153,-503.34250989,0.00013698,2]
[400836658,1767841839164,-500.0,0.00013698,2]
[400836660,1767841839173,-500.0,0.00013698,2]
[400836662,1767841839182,-500.0,0.00013698,2]
[400836664,1767841839191,-500.0,0.00013698,2]
[400836666,1767841839200,-500.0,0.00013698,2]
[400836668,1767841839210,-500.0,0.00013698,2]
[400836670,1767841839219,-500.0,0.00013698,2]
[400836672,1767841839228,-500.0,0.00013698,2]
[400836674,1767841839238,-500.0,0.00013698,2]
[400836676,1767841839247,-500.0,0.00013698,2]
[400836678,1767841839256,-500.0,0.00013698,2]
[400836680,1767841839267,-502.25127096,0.00013698,2]
[400836682,1767841839276,-500.0,0.00013698,2]
[400836684,1767841839285,-500.0,0.00013698,2]
[400836685,1767841839294,-500.0,0.00013698,2]
[400836688,1767841839303,-500.0,0.00013698,2]
[400836689,1767841839312,-500.0,0.00013698,2]
[400836691,1767841839322,-500.0,0.00013698,2]
[400836693,1767841839331,-500.0,0.00013698,2]
[400836696,1767841839341,-500.0,0.00013698,2]
[400836698,1767841839351,-500.0,0.00013698,2]
[400836699,1767841839362,-129667.33565381,0.0001374,2]
[400836702,1767841839373,-200.0,0.00013776,2]
[400836703,1767841839383,-200.0,0.00013776,2]
[400836706,1767841839395,-200.0,0.00013776,2]
[400836707,1767841839404,-626.22881488,0.00013778,2]
[400836709,1767841839412,-1480.81,0.00013785,2]
[400836711,1767841839421,-500.0,0.00013889,2]
[400836713,1767841839430,-500.0,0.00013889,2]
[400836716,1767841839439,-166.66,0.00013949,2]
[400836718,1767841839448,-250.031061,0.00014,2]
[400836719,1767841839458,-875.27078638,0.00014023,2]
[400836722,1767841839467,-1000.0,0.00014029,2]
[400836724,1767841839476,-198.43935064,0.00014049,2]
[400836726,1767841839485,-500.0,0.00014049,2]
[400836728,1767841839495,-410.25491874,0.00014049,2]
[400836729,1767841839504,-1100.0,0.0001405,2]
[400836732,1767841839517,-1480.81,0.00014059,2]
[400836734,1767841839527,-19191.74142588,0.00014195,2]
[400836736,1767841839536,-14710.94199581,0.00014196,2]
[400836738,1767841839545,-250.0,0.00014198,2]
[400836739,1767841839555,-255.0,0.0001424,2]
[400836742,1767841839564,-1480.81,0.00014333,2]
[400836743,1767841839573,-300.0,0.00014342,2]
[400836745,1767841839585,-195.0,0.00014342,2]
[400836748,1767841839595,-250.0,0.00014342,2]
[400836750,1767841839604,-289.46630104,0.00014352,2]
[400836752,1767841839613,-166.66,0.00014381,2]
[400836754,1767841839622,-420.0,0.00014404,2]
[400836756,1767841839632,-420.0,0.00014404,2]
[400836757,1767841839641,-1680.0,0.00014449,2]
[400836760,1767841839650,-300.0,0.00014452,2]
[400836762,1767841839659,-300.0,0.00014452,2]
[400836764,1767841839669,-300.0,0.00014452,2]
[400836766,1767841839678,-322.65837569,0.00014452,2]
[400836768,1767841839690,-300.0,0.00014452,2]
[400836770,1767841839699,-221.11907953,0.00014452,2]
[400836772,1767841839708,-195.0,0.00014452,2]
[400836774,1767841839717,-195.0,0.00014452,2]
[400836776,1767841839727,-250.0,0.00014452,2]
[400836777,1767841839736,-291.12405494,0.00014499,2]
[400836780,1767841839746,-303.90998119,0.00014532,2]
[400836782,1767841839755,-200.0,0.00014538,2]
[400836784,1767841839764,-195.0,0.00014562,2]
[400836786,1767841839774,-1000.0,0.0001458,2]
[400836788,1767841839783,-1480.81,0.00014607,2]
[400836790,1767841839792,-511.22,0.00014622,2]
[400836792,1767841839801,-1000.0,0.00014708,2]
[400836794,1767841839810,-184.55624416,0.00014724,2]
[400836795,1767841839820,-19191.74142588,0.00014725,2]
[400836797,1767841839830,-14710.94199581,0.00014725,2]
[400836800,1767841839840,-6628.01313901,0.00014733,2]
[400836801,1767841839849,-1100.0,0.00014753,2]
[400836803,1767841839858,-500.0,0.00014763,2]
[400836806,1767841839867,-500.0,0.00014763,2]
[400836808,1767841839879,-500.44132788,0.00014763,2]
[400836810,1767841839888,-500.0,0.00014763,2]
[400836812,1767841839897,-500.0,0.00014763,2]
[400836814,1767841839906,-500.0,0.00014763,2]
[400836816,1767841839915,-224.70175616,0.00014763,2]
[400836818,1767841839924,-500.0,0.00014763,2]
[400836820,1767841839933,-164.12535237,0.00014763,2]
[400836822,1767841839944,-500.0,0.00014763,2]
[400836824,1767841839953,-500.0,0.00014763,2]
[400836826,1767841839962,-500.0,0.00014763,2]
[400836827,1767841839971,-500.0,0.00014763,2]
[400836829,1767841839980,-166.61911688,0.00014763,2]
[400836831,1767841839990,-500.0,0.00014763,2]
[400836833,1767841839999,-500.0,0.00014763,2]
[400836835,1767841840008,-500.0,0.00014763,2]
[400836837,1767841840017,-351.13029525,0.00014763,2]
[400836839,1767841840028,-500.0,0.00014763,2]
[400836841,1767841840037,-500.0,0.00014763,2]
[400836843,1767841840046,-500.0,0.00014763,2]
[400836845,1767841840054,-500.0,0.00014763,2]
[400836847,1767841840063,-166.27119183,0.00014763,2]
[400836849,1767841840074,-500.0,0.00014763,2]
[400836851,1767841840083,-169.07455586,0.00014763,2]
[400836853,1767841840093,-500.0,0.00014763,2]
[400836855,1767841840102,-486.22003068,0.00014763,2]
[400836857,1767841840111,-500.40929236,0.00014763,2]
[400836859,1767841840120,-500.0,0.00014763,2]
[400836861,1767841840129,-500.0,0.00014763,2]
[400836863,1767841840138,-175.24655238,0.00014763,2]
[400836865,1767841840147,-167.54885661,0.00014763,2]
[400836867,1767841840156,-500.0,0.00014763,2]
[400836869,1767841840168,-500.85309076,0.00014763,2]
[400836871,1767841840177,-163.32215659,0.00014763,2]
[400836873,1767841840185,-165.70843486,0.00014763,2]
[400836875,1767841840194,-500.0,0.00014763,2]
[400836877,1767841840204,-501.56644481,0.00014763,2]
[400836879,1767841840213,-500.29238726,0.00014763,2]
[400836881,1767841840222,-216.92080784,0.00014763,2]
[400836883,1767841840231,-500.3780208,0.00014763,2]
[400836885,1767841840240,-875.27078638,0.00014798,2]
[400836887,1767841840249,-166.66,0.00014813,2]
[400836889,1767841840258,-1480.81,0.00014881,2]
[400836891,1767841840267,-291.12405494,0.00014883,2]
[400836893,1767841840277,-536.14,0.00014953,2]
[400836895,1767841840286,-1000.0,0.00014971,2]
[400836900,1767841840296,-1000.0,0.00015012,2]
[400836903,1767841840306,-500.0,0.00015041,2]
[400836906,1767841840315,-736.73634073,0.00015066,2]
[400836909,1767841840324,-151.0,0.00015066,2]
[400836911,1767841840333,-578.20924308,0.00015066,2]
[400836913,1767841840342,-151.0,0.00015066,2]
[400836915,1767841840351,-500.0,0.00015066,2]
[400836917,1767841840360,-500.0,0.00015066,2]
[400836919,1767841840369,-500.0,0.00015066,2]
[400836921,1767841840378,-500.0,0.00015066,2]
[400836923,1767841840386,-151.66241854,0.00015066,2]
[400836925,1767841840395,-500.0,0.00015066,2]
[400836927,1767841840405,-500.0,0.00015066,2]
[400836929,1767841840414,-500.0,0.00015066,2]
[400836931,1767841840423,-500.0,0.00015066,2]
[400836933,1767841840432,-574.12855637,0.00015066,2]
[400836935,1767841840441,-500.0,0.00015066,2]
[400836937,1767841840450,-500.0,0.00015066,2]
[400836939,1767841840459,-500.0,0.00015066,2]
[400836941,1767841840477,-322.6107,0.00015066,2]
[400836943,1767841840487,-1500.0,0.00015066,2]
[400836945,1767841840495,-1500.0,0.00015066,2]
[400836947,1767841840504,-1500.0,0.00015066,2]
[400836949,1767841840517,-500.0,0.00015066,2]
[400836951,1767841840527,-500.0,0.00015066,2]
[400836953,1767841840537,-1500.0,0.00015066,2]
[400836955,1767841840546,-500.0,0.00015066,2]
[400836957,1767841840557,-500.0,0.00015066,2]
[400836959,1767841840566,-500.0,0.00015066,2]
[400836961,1767841840575,-1500.0,0.00015066,2]
[400836964,1767841840588,-500.0,0.00015066,2]
[400836965,1767841840598,-419.1378307,0.00015066,2]
[400836968,1767841840609,-500.0,0.00015066,2]
[400836970,1767841840618,-1500.0,0.00015066,2]
[400836971,1767841840627,-500.0,0.00015066,2]
[400836973,1767841840637,-500.0,0.00015066,2]
[400836975,1767841840647,-1500.0,0.00015066,2]
[400837017,1767841841026,-500.0,0.00015066,2]
[400837019,1767841841036,-500.0,0.00015066,2]
[400837021,1767841841045,-1500.0,0.00015066,2]
[400837023,1767841841054,-500.0,0.00015066,2]
[400837025,1767841841063,-500.0,0.00015066,2]
[400837027,1767841841072,-1500.0,0.00015066,2]
[400837029,1767841841081,-2000.0,0.00015066,2]
[400837031,1767841841090,-500.0,0.00015066,2]
[400837033,1767841841100,-500.0,0.00015066,2]
[400837035,1767841841109,-1500.0,0.00015066,2]
[400837037,1767841841119,-2000.0,0.00015066,2]
[400837039,1767841841128,-500.0,0.00015066,2]
[400837041,1767841841137,-500.0,0.00015066,2]
[400837043,1767841841146,-1500.0,0.00015066,2]
[400837045,1767841841154,-2000.0,0.00015066,2]
[400837047,1767841841163,-500.0,0.00015066,2]
[400837049,1767841841172,-500.0,0.00015066,2]
[400837051,1767841841181,-500.0,0.00015066,2]
[400837053,1767841841190,-2000.0,0.00015066,2]
[400837055,1767841841198,-500.0,0.00015066,2]
[400837057,1767841841207,-2000.0,0.00015066,2]
[400837059,1767841841216,-500.0,0.00015066,2]
[400837060,1767841841225,-2000.0,0.00015066,2]
[400837062,1767841841234,-2000.0,0.00015066,2]
[400837064,1767841841243,-2000.0,0.00015066,2]
[400837066,1767841841252,-250.0,0.00015066,2]
[400837068,1767841841261,-2000.0,0.00015066,2]
[400837070,1767841841269,-270.73180541,0.00015066,2]
[400837072,1767841841278,-2000.0,0.00015066,2]
[400837074,1767841841287,-500.0,0.00015066,2]
[400837076,1767841841298,-620.0,0.00015066,2]
[400837078,1767841841306,-2000.0,0.00015066,2]
[400837080,1767841841315,-500.0,0.00015066,2]
[400837082,1767841841324,-888.0,0.00015068,2]
[400837084,1767841841333,-500.0,0.00015075,2]
[400837086,1767841841342,-151.0,0.00015092,2]
[400837088,1767841841351,-1000.0,0.00015099,2]
[400837090,1767841841360,-1480.81,0.00015155,2]
[400837092,1767841841369,-300.0,0.00015165,2]
[400837094,1767841841378,-291.12405494,0.00015179,2]
[400837096,1767841841387,-151.0,0.0001519,2]
[400837098,1767841841396,-151.0,0.0001519,2]
[400837100,1767841841405,-151.0,0.00015223,2]
[400837102,1767841841414,-151.0,0.00015223,2]
[400837104,1767841841424,-10485.9218373,0.00015229,2]
[400837105,1767841841433,-166.66,0.00015245,2]
[400837107,1767841841441,-19191.74142588,0.00015254,2]
[400837109,1767841841451,-14710.94199581,0.00015254,2]
[400837111,1767841841460,-9999.99,0.0001531,2]
[400837113,1767841841469,-25966.37,0.0001531,2]
[400837115,1767841841477,-1056.63084022,0.0001531,2]
[400837117,1767841841487,-1003.39731662,0.0001531,2]
[400837119,1767841841495,-1000.0,0.0001531,2]
[400837121,1767841841504,-1000.0,0.0001531,2]
[400837123,1767841841516,-1000.0,0.0001531,2]
[400837125,1767841841527,-1000.0,0.0001531,2]
[400837127,1767841841536,-1000.0,0.0001531,2]
[400837129,1767841841544,-1000.0,0.0001531,2]
[400837131,1767841841555,-1000.0,0.0001531,2]
[400837133,1767841841563,-1016.8375445,0.0001531,2]
[400837135,1767841841572,-212.65120656,0.0001531,2]
[400837136,1767841841581,-1000.0,0.0001531,2]
[400837138,1767841841591,-1000.0,0.0001531,2]
[400837140,1767841841600,-412.45872532,0.0001531,2]
[400837142,1767841841609,-1000.0,0.0001531,2]
[400837144,1767841841620,-1000.0,0.0001531,2]
[400837146,1767841841629,-913.69875704,0.0001531,2]
[400837148,1767841841639,-1000.0,0.0001531,2]
[400837150,1767841841648,-312.00908556,0.0001531,2]
[400837152,1767841841658,-1000.0,0.0001531,2]
[400837154,1767841841667,-1000.0,0.0001531,2]
[400837156,1767841841676,-1000.0,0.0001531,2]
[400837158,1767841841685,-1000.0,0.0001531,2]
[400837160,1767841841694,-1000.0,0.00015328,2]
[400837162,1767841841703,-1480.81,0.00015428,2]
[400837164,1767841841712,-433.0,0.00015436,2]
[400837166,1767841841722,-1100.0,0.0001549,2]
[400837168,1767841841731,-875.27078638,0.00015574,2]
[400837170,1767841841741,-1000.0,0.00015592,2]
[400837172,1767841841751,-1000.0,0.00015598,2]
[400837174,1767841841760,-152.48765181,0.00015614,2]
[400837176,1767841841770,-157.22325972,0.00015614,2]
[400837178,1767841841780,-595.37131296,0.00015614,2]
[400837180,1767841841789,-1000.0,0.00015618,2]
[400837181,1767841841798,-1000.0,0.00015618,2]
[400837183,1767841841808,-500.0,0.0001562,2]
[400837185,1767841841817,-199.68389462,0.0001562,2]
[400837187,1767841841826,-298.55571607,0.00015662,2]
[400837189,1767841841836,-1480.81,0.00015702,2]
[400837191,1767841841845,-19191.74142588,0.00015783,2]
[400837193,1767841841855,-536.14,0.00015783,2]
[400837195,1767841841864,-14710.94199581,0.00015784,2]
[400837197,1767841841873,-587.0,0.00015794,2]
[400837199,1767841841888,-587.0,0.00015794,2]
[400837201,1767841841897,-755.93468828,0.00015799,2]
[400837203,1767841841906,-1500.0,0.00015858,2]
[400837205,1767841841916,-950.84693016,0.00015858,2]
[400837207,1767841841925,-1030.62564826,0.00015858,2]
[400837209,1767841841935,-1500.0,0.00015858,2]
[400837211,1767841841945,-1500.0,0.00015858,2]
[400837213,1767841841954,-1500.0,0.00015858,2]
[400837215,1767841841964,-1500.0,0.00015858,2]
[400837217,1767841841973,-322.81176918,0.00015858,2]
[400837219,1767841841983,-1500.0,0.00015858,2]
[400837221,1767841841992,-156.27078391,0.00015858,2]
[400837223,1767841842001,-1500.0,0.00015858,2]
[400837225,1767841842010,-501.84542925,0.00015858,2]
[400837227,1767841842019,-1500.0,0.00015858,2]
[400837229,1767841842029,-1129.4325829,0.00015858,2]
[400837231,1767841842039,-1011.09296657,0.00015858,2]
[400837233,1767841842049,-1501.21839087,0.00015858,2]
[400837235,1767841842059,-2351.0,0.00015894,2]
[400837237,1767841842068,-322.28994131,0.00015896,2]
[400837239,1767841842078,-213.55777834,0.00015896,2]
[400837241,1767841842088,-6381.71083121,0.000159,2]
[400837243,1767841842097,-1480.81,0.00015976,2]
[400837245,1767841842106,-200.0,0.00016,2]
[400837246,1767841842115,-300.0,0.00016006,2]
[400837247,1767841842125,-1000.0,0.0001607,2]
[400837248,1767841842135,-1000.0,0.00016082,2]
[400837249,1767841842143,-300.0,0.00016102,2]
[400837250,1767841842153,-9252.33,0.00016116,2]
[400837251,1767841842163,-500.0,0.00016137,2]
[400837252,1767841842172,-617.40005154,0.00016162,2]
[400837253,1767841842181,-150.0,0.000162,2]
[400837254,1767841842190,-300.0,0.00016216,2]
[400837255,1767841842199,-300.0,0.00016231,2]
[400837256,1767841842208,-511.22,0.00016247,2]
[400837257,1767841842217,-1480.81,0.0001625,2]
[400837258,1767841842227,-150.0,0.00016253,2]
[400837259,1767841842236,-1100.0,0.00016265,2]
[400837260,1767841842245,-300.0,0.00016296,2]
[400837261,1767841842254,-300.0,0.00016303,2]
[400837262,1767841842265,-150.0,0.00016306,2]
[400837263,1767841842275,-19191.74142588,0.00016312,2]
[400837265,1767841842284,-11890.0,0.00016313,2]
[400837267,1767841842293,-14710.94199581,0.00016313,2]
[400837269,1767841842302,-1000.0,0.00016342,2]
[400837271,1767841842311,-875.27078638,0.00016349,2]
[400837273,1767841842320,-300.0,0.00016352,2]
[400837275,1767841842329,-170.85,0.00016356,2]
[400837276,1767841842338,-150.0,0.00016359,2]
[400837278,1767841842347,-1000.0,0.00016381,2]
[400837280,1767841842356,-300.0,0.00016383,2]
[400837282,1767841842365,-300.0,0.00016386,2]
[400837284,1767841842375,-300.0,0.00016392,2]
[400837286,1767841842384,-300.0,0.00016393,2]
[400837288,1767841842392,-500.0,0.00016396,2]
[400837290,1767841842402,-500.0,0.00016396,2]
[400837292,1767841842411,-833.0,0.000164,2]
[400837294,1767841842420,-162.0,0.000164,2]
[400837296,1767841842430,-833.0,0.000164,2]
[400837298,1767841842440,-504.82287623,0.00016406,2]
[400837300,1767841842449,-2000.0,0.00016406,2]
[400837302,1767841842459,-2000.0,0.00016406,2]
[400837304,1767841842467,-2000.0,0.00016406,2]
[400837306,1767841842477,-2000.0,0.00016406,2]
[400837308,1767841842486,-2000.0,0.00016406,2]
[400837310,1767841842495,-2000.0,0.00016406,2]
[400837312,1767841842503,-2000.0,0.00016406,2]
[400837314,1767841842515,-150.0,0.00016412,2]
[400837316,1767841842524,-334.5472959,0.00016435,2]
[400837318,1767841842533,-642.94,0.00016435,2]
[400837320,1767841842542,-1204.00010978,0.00016438,2]
[400837322,1767841842551,-1204.00010978,0.00016438,2]
[400837324,1767841842561,-1204.00010978,0.00016438,2]
[400837326,1767841842571,-1204.00010978,0.00016438,2]
[400837328,1767841842580,-1204.00010978,0.00016438,2]
[400837330,1767841842591,-1204.00010978,0.00016438,2]
[400837332,1767841842600,-1204.00010978,0.00016438,2]
[400837334,1767841842610,-1204.00010978,0.00016438,2]
[400837336,1767841842619,-1204.00010978,0.00016438,2]
[400837338,1767841842628,-1204.00010978,0.00016438,2]
[400837340,1767841842637,-1204.00010978,0.00016438,2]
[400837342,1767841842647,-1204.00010978,0.00016438,2]
[400837344,1767841842656,-1204.00010978,0.00016438,2]
[400837346,1767841842665,-1204.00010978,0.00016438,2]
[400837348,1767841842674,-1204.00010978,0.00016438,2]
[400837350,1767841842683,-1204.00010978,0.00016438,2]
[400837352,1767841842692,-1204.00010978,0.00016438,2]
[400837354,1767841842701,-1204.00010978,0.00016438,2]
[400837356,1767841842711,-1204.00010978,0.00016438,2]
[400837358,1767841842720,-1204.00010978,0.00016438,2]
[400837360,1767841842730,-1204.00010978,0.00016438,2]
[400837362,1767841842739,-1204.00010978,0.00016438,2]
[400837364,1767841842748,-1204.00010978,0.00016438,2]
[400837366,1767841842756,-1204.00010978,0.00016438,2]
[400837368,1767841842766,-1204.00010978,0.00016438,2]
[400837370,1767841842775,-1204.00010978,0.00016438,2]
[400837372,1767841842784,-1204.00010978,0.00016438,2]
[400837374,1767841842794,-1204.00010978,0.00016438,2]
[400837376,1767841842803,-1204.00010978,0.00016438,2]
[400837378,1767841842812,-1204.00010978,0.00016438,2]
[400837380,1767841842821,-1204.00010978,0.00016438,2]
[400837382,1767841842830,-1204.00010978,0.00016438,2]
[400837384,1767841842839,-1204.00010978,0.00016438,2]
[400837386,1767841842848,-1204.00010978,0.00016438,2]
[400837388,1767841842858,-1204.00010978,0.00016438,2]
[400837390,1767841842867,-1204.00010978,0.00016438,2]
[400837392,1767841842875,-1204.00010978,0.00016438,2]
[400837394,1767841842885,-1204.00010978,0.00016438,2]
[400837396,1767841842894,-1204.00010978,0.00016438,2]
[400837398,1767841842904,-1204.00010978,0.00016438,2]
[400837400,1767841842913,-1204.00010978,0.00016438,2]
[400837402,1767841842923,-1204.00010978,0.00016438,2]
[400837404,1767841842932,-1204.00010978,0.00016438,2]
[400837406,1767841842943,-1204.00010978,0.00016438,2]
[400837408,1767841842952,-1204.00010978,0.00016438,2]
[400837410,1767841842961,-1204.00010978,0.00016438,2]
[400837412,1767841842971,-1204.00010978,0.00016438,2]
[400837414,1767841842980,-1204.00010978,0.00016438,2]
[400837416,1767841842990,-1204.00010978,0.00016438,2]
[400837418,1767841842999,-1204.00010978,0.00016438,2]
[400837420,1767841843008,-1204.00010978,0.00016438,2]
[400837422,1767841843018,-1204.00010978,0.00016438,2]
[400837425,1767841843027,-1204.00010978,0.00016438,2]
[400837426,1767841843037,-1204.00010978,0.00016438,2]
[400837428,1767841843046,-1204.00010978,0.00016438,2]
[400837431,1767841843056,-1204.00010978,0.00016438,2]
[400837432,1767841843065,-1204.00010978,0.00016438,2]
[400837434,1767841843075,-1188.46462448,0.00016438,2]
[400837437,1767841843084,-1188.46462448,0.00016438,2]
[400837439,1767841843094,-1188.46462448,0.00016438,2]
[400837441,1767841843104,-1188.46462448,0.00016438,2]
[400837443,1767841843114,-1188.46462448,0.00016438,2]
[400837445,1767841843124,-1188.46462448,0.00016438,2]
[400837447,1767841843134,-1188.46462448,0.00016438,2]
[400837448,1767841843145,-1188.46462448,0.00016438,2]
[400837450,1767841843155,-1188.46462448,0.00016438,2]
[400837452,1767841843164,-1188.46462448,0.00016438,2]
[400837454,1767841843174,-1188.46462448,0.00016438,2]
[400837456,1767841843183,-1188.46462448,0.00016438,2]
[400837459,1767841843192,-1188.46462448,0.00016438,2]
[400837460,1767841843202,-1188.46462448,0.00016438,2]
[400837462,1767841843211,-1188.46462448,0.00016438,2]
[400837464,1767841843220,-1188.46462448,0.00016438,2]
[400837466,1767841843229,-1188.46462448,0.00016438,2]
[400837468,1767841843238,-1188.46462448,0.00016438,2]
[400837470,1767841843247,-1188.46462448,0.00016438,2]
[400837472,1767841843256,-1188.46462448,0.00016438,2]
[400837474,1767841843266,-1188.46462448,0.00016438,2]
[400837476,1767841843275,-1188.46462448,0.00016438,2]
[400837478,1767841843284,-1188.46462448,0.00016438,2]
[400837480,1767841843293,-1188.46462448,0.00016438,2]
[400837482,1767841843303,-1188.46462448,0.00016438,2]
[400837484,1767841843312,-1188.46462448,0.00016438,2]
[400837486,1767841843322,-1188.46462448,0.00016438,2]
[400837488,1767841843332,-1188.46462448,0.00016438,2]
[400837490,1767841843341,-1188.46462448,0.00016438,2]
[400837492,1767841843351,-1188.46462448,0.00016438,2]
[400837494,1767841843361,-1188.46462448,0.00016438,2]
[400837496,1767841843370,-800.0,0.00016438,2]
[400837498,1767841843379,-300.0,0.00016443,2]
[400837500,1767841843388,-300.0,0.00016463,2]
[400837502,1767841843397,-150.0,0.00016465,2]
[400837504,1767841843406,-300.0,0.00016475,2]
[400837506,1767841843415,-300.0,0.0001648,2]
[400837508,1767841843424,-300.0,0.00016492,2]
[400837510,1767841843433,-300.0,0.00016492,2]
[400837512,1767841843442,-300.0,0.00016504,2]
[400837514,1767841843451,-150.0,0.00016518,2]
[400837516,1767841843461,-1480.81,0.00016524,2]
[400837518,1767841843470,-300.0,0.00016526,2]
[400837520,1767841843479,-300.0,0.00016531,2]
[400837522,1767841843488,-300.0,0.00016541,2]
[400837524,1767841843496,-150.0,0.00016571,2]
[400837526,1767841843505,-300.0,0.00016595,2]
[400837528,1767841843517,-536.14,0.00016614,2]
[400837530,1767841843527,-150.0,0.00016624,2]
[400837532,1767841843536,-157.19112422,0.00016626,2]
[400837534,1767841843544,-300.0,0.00016629,2]
[400837536,1767841843555,-300.0,0.00016641,2]
[400837537,1767841843564,-285.16,0.00016674,2]
[400837539,1767841843574,-150.0,0.00016676,2]
[400837541,1767841843586,-300.0,0.00016689,2]
[400837543,1767841843595,-640.24385345,0.0001671,2]
[400837545,1767841843604,-833.0,0.0001672,2]
[400837547,1767841843614,-833.0,0.0001672,2]
[400837550,1767841843623,-300.0,0.00016722,2]
[400837551,1767841843633,-4122.0,0.00016727,2]
[400837553,1767841843642,-150.0,0.00016729,2]
[400837555,1767841843652,-300.0,0.00016734,2]
[400837557,1767841843662,-736.0,0.00016736,2]
[400837559,1767841843671,-300.0,0.00016749,2]
[400837561,1767841843681,-300.0,0.0001676,2]
[400837563,1767841843690,-300.0,0.00016778,2]
[400837565,1767841843699,-150.0,0.00016782,2]
[400837568,1767841843709,-300.0,0.00016785,2]
[400837569,1767841843718,-1480.81,0.00016798,2]
[400837571,1767841843727,-300.0,0.00016808,2]
[400837573,1767841843736,-762.0,0.0001681,2]
[400837576,1767841843746,-300.0,0.00016813,2]
[400837577,1767841843756,-300.0,0.00016835,2]
[400837580,1767841843766,-150.0,0.00016835,2]
[400837581,1767841843776,-19191.74142588,0.00016842,2]
[400837583,1767841843786,-14710.94199581,0.00016842,2]
[400837585,1767841843796,-300.0,0.0001685,2]
[400837587,1767841843806,-300.0,0.00016852,2]
[400837590,1767841843815,-4122.0,0.00016862,2]
[400837591,1767841843824,-300.0,0.00016871,2]
[400837594,1767841843835,-1000.0,0.00016879,2]
[400837596,1767841843844,-150.0,0.00016888,2]
[400837598,1767841843853,-1000.0,0.00016908,2]
[400837600,1767841843862,-300.0,0.00016913,2]
[400837602,1767841843871,-300.0,0.00016917,2]
[400837604,1767841843880,-2061.0,0.00016939,2]
[400837606,1767841843889,-150.0,0.00016941,2]
[400837608,1767841843899,-1002.28599053,0.00016954,2]
[400837610,1767841843908,-2500.0,0.00016954,2]
[400837612,1767841843917,-502.55797273,0.00016954,2]
[400837614,1767841843926,-2500.0,0.00016954,2]
[400837616,1767841843935,-1003.11520818,0.00016954,2]
[400837618,1767841843945,-1374.30420202,0.00016954,2]
[400837620,1767841843957,-1181.44262662,0.00016954,2]
[400837622,1767841843967,-300.0,0.00016966,2]